fUST/lending_fUST_20250212
["ID","MTS","AMOUNT","RATE_DAILY","PERIOD"]
[352848647,1739368056530,-641.99,0.00012191,2]
[352848648,1739368056554,-976.680384,0.00012191,2]
[352848649,1739368056584,-1025.73,0.00012191,2]
[352848650,1739368056610,-500.0,0.00012191,2]
[352848651,1739368056635,-976.680384,0.00012191,2]
[352848652,1739368056663,-500.0,0.00012328,2]
[352848653,1739368056690,-500.0,0.00012328,2]
[352848654,1739368056716,-500.0,0.00012328,2]
[352848655,1739368056741,-500.0,0.00012328,2]
[352848656,1739368056767,-500.0,0.00012328,2]
[352848657,1739368056792,-500.0,0.00012328,2]
[352848658,1739368056818,-923.49,0.00012328,2]
[352848659,1739368056843,-590.34,0.00012328,2]
[352848660,1739368056871,-3189.09,0.00012328,2]
[352848661,1739368056901,-1827.83,0.00012328,2]
[352848662,1739368056929,-804.88,0.00012328,2]
[352848663,1739368056956,-10644.47,0.00012328,2]
[352848664,1739368056983,-500.0,0.00012328,2]
[352848665,1739368057009,-901.3,0.00012328,2]
[352848666,1739368057035,-500.0,0.00012328,2]
[352848667,1739368057061,-1071.99,0.00012328,2]
[352848668,1739368057085,-1744.06,0.00012328,2]
[352848669,1739368057109,-500.0,0.00012328,2]
[352848670,1739368057135,-3667.47,0.00012328,2]
[352848671,1739368057163,-643.56,0.00012328,2]
[352848672,1739368057189,-500.0,0.00012328,2]
[352848673,1739368057216,-500.0,0.00012328,2]
[352848674,1739368057245,-500.0,0.00012328,2]
[352848675,1739368057271,-641.99,0.00012328,2]
[352848676,1739368057298,-1025.73,0.00012328,2]
[352848677,1739368057324,-500.0,0.00012328,2]
[352848678,1739368057349,-500.0,0.00012465,2]
[352848679,1739368057375,-500.0,0.00012465,2]
[352848680,1739368057405,-500.0,0.00012465,2]
[352848681,1739368057431,-500.0,0.00012465,2]
[352848682,1739368057455,-500.0,0.00012465,2]
[352848683,1739368057481,-500.0,0.00012465,2]
[352848684,1739368057506,-923.49,0.00012465,2]
[352848685,1739368057532,-3189.09,0.00012465,2]
[352848686,1739368057566,-1827.83,0.00012465,2]
[352848687,1739368057592,-804.88,0.00012465,2]
[352848688,1739368057618,-10644.47,0.00012465,2]
[352848689,1739368057644,-500.0,0.00012465,2]
[352848690,1739368057674,-901.3,0.00012465,2]
[352848691,1739368057700,-500.0,0.00012465,2]
[352848692,1739368057726,-1071.99,0.00012465,2]
[352848693,1739368057752,-1744.06,0.00012465,2]
[352848694,1739368057778,-500.0,0.00012465,2]
[352848695,1739368057805,-3667.47,0.00012465,2]
[352848696,1739368057833,-643.56,0.00012465,2]
[352848697,1739368057960,-500.0,0.00012465,2]
[352848698,1739368057988,-500.0,0.00012465,2]
[352848699,1739368058016,-500.0,0.00012465,2]
[352848700,1739368058046,-641.99,0.00012465,2]
[352848701,1739368058073,-976.680384,0.00012465,2]
[352848702,1739368058100,-1025.73,0.00012465,2]
[352848703,1739368058126,-500.0,0.00012465,2]
[352848704,1739368058152,-976.680384,0.00012465,2]
[352848705,1739368058176,-966.35743524,0.00012502,2]
[352848706,1739368058201,-500.0,0.00012602,2]
[352848707,1739368058228,-500.0,0.00012602,2]
[352848708,1739368058257,-500.0,0.00012602,2]
[352848709,1739368058283,-500.0,0.00012602,2]
[352848710,1739368058308,-204.84909132,0.00012602,2]
[352848711,1739368058334,-500.0,0.00012602,2]
[352848712,1739368058360,-923.49,0.00012602,2]
[352848713,1739368058385,-3189.09,0.00012602,2]
[352848714,1739368058417,-1827.83,0.00012602,2]
[352848715,1739368058442,-804.88,0.00012602,2]
[352848716,1739368058469,-10644.47,0.00012602,2]
[352848717,1739368058494,-513.06499533,0.00012602,2]
[352848718,1739368058520,-901.3,0.00012602,2]
[352848719,1739368058546,-500.0,0.00012602,2]
[352848720,1739368058572,-1071.99,0.00012602,2]
[352848721,1739368058597,-1744.06,0.00012602,2]
[352848722,1739368058622,-500.0,0.00012602,2]
[352848723,1739368058651,-3667.47,0.00012602,2]
[352848724,1739368058678,-643.56,0.00012602,2]
[352848725,1739368058704,-500.0,0.00012602,2]
[352848726,1739368058731,-500.0,0.00012602,2]
[352848727,1739368058759,-500.0,0.00012602,2]
[352848728,1739368058785,-641.99,0.00012602,2]
[352848729,1739368058811,-1025.73,0.00012602,2]
[352848730,1739368058836,-500.0,0.00012602,2]
[352848731,1739368058860,-392.9013356,0.00012611,2]
[352848732,1739368058888,-500.0,0.00012739,2]
[352848733,1739368058917,-632.45,0.00012739,2]
[352848734,1739368058945,-216.17628127,0.00012739,2]
[352848735,1739368058969,-380.57,0.00012739,2]
[352848736,1739368058994,-500.0,0.00012739,2]
[352848737,1739368059019,-923.49,0.00012739,2]
[352848738,1739368059045,-3189.09,0.00012739,2]
[352848739,1739368059071,-1827.83,0.00012739,2]
[352848740,1739368059098,-804.88,0.00012739,2]
[352848741,1739368059123,-10644.47,0.00012739,2]
[352848742,1739368059151,-901.3,0.00012739,2]
[352848743,1739368059176,-500.0,0.00012739,2]
[352848744,1739368059204,-1071.99,0.00012739,2]
[352848745,1739368059234,-1744.06,0.00012739,2]
[352848746,1739368059257,-500.0,0.00012739,2]
[352848747,1739368059284,-3667.47,0.00012739,2]
[352848748,1739368059312,-643.56,0.00012739,2]
[352848749,1739368059338,-500.0,0.00012739,2]
[352848750,1739368059364,-500.0,0.00012739,2]
[352848751,1739368059389,-500.0,0.00012739,2]
[352848752,1739368059417,-641.99,0.00012739,2]
[352848753,1739368059442,-976.680384,0.00012739,2]
[352848754,1739368059468,-1025.73,0.00012739,2]
[352848755,1739368059493,-500.0,0.00012739,2]
[352848756,1739368059516,-976.680384,0.00012739,2]
[352848757,1739368059541,-316.39,0.00012876,2]
[352848758,1739368059565,-620.42847092,0.00012876,2]
[352848759,1739368059590,-923.49,0.00012876,2]
[352848760,1739368059617,-3189.09,0.00012876,2]
[352848761,1739368059643,-1827.83,0.00012876,2]
[352848762,1739368059671,-804.88,0.00012876,2]
[352848763,1739368059697,-10644.47,0.00012876,2]
[352848764,1739368059722,-901.3,0.00012876,2]
[352848765,1739368059747,-500.0,0.00012876,2]
[352848766,1739368059772,-1071.99,0.00012876,2]
[352848767,1739368059796,-1744.06,0.00012876,2]
[352848768,1739368059819,-500.0,0.00012876,2]
[352848769,1739368059849,-3667.47,0.00012876,2]
[352848770,1739368059877,-643.56,0.00012876,2]
[352848771,1739368059906,-500.0,0.00012876,2]
[352848772,1739368059932,-500.0,0.00012876,2]
[352848773,1739368059958,-500.0,0.00012876,2]
[352848774,1739368059984,-641.99,0.00012876,2]
[352848775,1739368060015,-1025.73,0.00012876,2]
[352848776,1739368060042,-500.0,0.00012876,2]
[352848777,1739368060068,-163.63082307,0.000129,2]
[352848778,1739368060093,-163.63082306,0.000129,2]
[352848779,1739368060117,-1000.0,0.00013,2]
[352848780,1739368060141,-500.0,0.00013,2]
[352848781,1739368060170,-500.0,0.00013,2]
[352848782,1739368060199,-500.0,0.00013,2]
[352848783,1739368060225,-188621.86208298,0.00013,2]
[352848784,1739368060253,-976.680384,0.00013,2]
[352848785,1739368060279,-976.680384,0.00013,2]
[352848786,1739368060308,-923.49,0.00013013,2]
[352848787,1739368060335,-3189.09,0.00013013,2]
[352848788,1739368060362,-1827.83,0.00013013,2]
[352848789,1739368060389,-804.88,0.00013013,2]
[352848790,1739368060420,-10644.47,0.00013013,2]
[352848791,1739368060448,-901.3,0.00013013,2]
[352848792,1739368060568,-500.0,0.00013013,2]
[352848793,1739368060597,-1071.99,0.00013013,2]
[352848794,1739368060624,-1744.06,0.00013013,2]
[352848795,1739368060656,-500.0,0.00013013,2]
[352848796,1739368060685,-3667.47,0.00013013,2]
[352848797,1739368060713,-643.56,0.00013013,2]
[352848798,1739368060739,-500.0,0.00013013,2]
[352848799,1739368060765,-500.0,0.00013013,2]
[352848800,1739368060789,-500.0,0.00013013,2]
[352848801,1739368060815,-641.99,0.00013013,2]
[352848802,1739368060843,-1025.73,0.00013013,2]
[352848803,1739368060870,-500.0,0.00013013,2]
[352848804,1739368060895,-966.35743518,0.00013023,2]
[352848805,1739368060928,-923.49,0.0001315,2]
[352848806,1739368060957,-3189.09,0.0001315,2]
[352848807,1739368060984,-1827.83,0.0001315,2]
[352848808,1739368061012,-804.88,0.0001315,2]
[352848809,1739368061039,-10644.47,0.0001315,2]
[352848810,1739368061065,-901.3,0.0001315,2]
[352848811,1739368061091,-500.0,0.0001315,2]
[352848812,1739368061117,-1071.99,0.0001315,2]
[352848813,1739368061144,-1744.06,0.0001315,2]
[352848814,1739368061175,-500.0,0.0001315,2]
[352848815,1739368061208,-3667.47,0.0001315,2]
[352848816,1739368061238,-643.56,0.0001315,2]
[352848817,1739368061271,-500.0,0.0001315,2]
[352848818,1739368061301,-500.0,0.0001315,2]
[352848819,1739368061330,-167.52173025,0.0001315,2]
[352848820,1739368061359,-641.99,0.0001315,2]
[352848821,1739368061388,-1025.73,0.0001315,2]
[352848822,1739368061422,-500.0,0.0001315,2]
[352848823,1739368061448,-1000.0,0.000132,2]
[352848824,1739368061474,-500.0,0.00013219,2]
[352848825,1739368061501,-587.0,0.00013232,2]
[352848826,1739368061530,-923.49,0.00013287,2]
[352848827,1739368061557,-3189.09,0.00013287,2]
[352848828,1739368061585,-1827.83,0.00013287,2]
[352848829,1739368061610,-804.88,0.00013287,2]
[352848830,1739368061636,-10644.47,0.00013287,2]
[352848831,1739368061669,-901.3,0.00013287,2]
[352848832,1739368061697,-500.0,0.00013287,2]
[352848833,1739368061725,-1071.99,0.00013287,2]
[352848834,1739368061755,-1744.06,0.00013287,2]
[352848835,1739368061786,-500.0,0.00013287,2]
[352848836,1739368061821,-3667.47,0.00013287,2]
[352848837,1739368061854,-643.56,0.00013287,2]
[352848838,1739368061887,-500.0,0.00013287,2]
[352848839,1739368061935,-500.0,0.00013287,2]
[352848840,1739368061977,-641.99,0.00013287,2]
[352848841,1739368062016,-976.680384,0.00013287,2]
[352848842,1739368062056,-1025.73,0.00013287,2]
[352848843,1739368062094,-500.0,0.00013287,2]
[352848844,1739368062128,-976.680394,0.00013287,2]
[352848845,1739368062161,-800.0,0.00013354,2]
[352848846,1739368062198,-923.49,0.00013424,2]
[352848847,1739368062235,-3189.09,0.00013424,2]
[352848848,1739368062270,-1827.83,0.00013424,2]
[352848849,1739368062309,-804.88,0.00013424,2]
[352848850,1739368062346,-10644.47,0.00013424,2]
[352848851,1739368062384,-901.3,0.00013424,2]
[352848852,1739368062420,-456.96,0.00013424,2]
[352848853,1739368062452,-1071.99,0.00013424,2]
[352848854,1739368062489,-1744.06,0.00013424,2]
[352848855,1739368062520,-500.0,0.00013424,2]
[352848856,1739368062556,-3667.47,0.00013424,2]
[352848857,1739368062587,-643.56,0.00013424,2]
[352848858,1739368062618,-175.83302937,0.00013424,2]
[352848859,1739368062655,-522.80959857,0.00013424,2]
[352848860,1739368062688,-641.99,0.00013424,2]
[352848861,1739368062721,-1025.73,0.00013424,2]
[352848862,1739368062753,-500.0,0.00013424,2]
[352848863,1739368062785,-1000.0,0.000135,2]
[352848864,1739368062818,-966.35743518,0.00013545,2]
[352848865,1739368062851,-923.49,0.00013561,2]
[352848866,1739368062886,-3189.09,0.00013561,2]
[352848867,1739368062927,-1827.83,0.00013561,2]
[352848868,1739368062982,-804.88,0.00013561,2]
[352848869,1739368063027,-10644.47,0.00013561,2]
[352848870,1739368063069,-901.3,0.00013561,2]
[352848871,1739368063110,-1071.99,0.00013561,2]
[352848872,1739368063146,-1744.06,0.00013561,2]
[352848873,1739368063185,-467.73,0.00013561,2]
[352848874,1739368063223,-3667.47,0.00013561,2]
[352848875,1739368063262,-643.56,0.00013561,2]
[352848876,1739368063295,-641.99,0.00013561,2]
[352848877,1739368063330,-1025.73,0.00013561,2]
[352848878,1739368063363,-150.56,0.00013561,2]
[352848879,1739368063395,-923.49,0.00013698,2]
[352848880,1739368063435,-3189.09,0.00013698,2]
[352848881,1739368063466,-1827.83,0.00013698,2]
[352848882,1739368063492,-804.88,0.00013698,2]
[352848883,1739368063678,-10644.47,0.00013698,2]
[352848884,1739368063717,-901.3,0.00013698,2]
[352848885,1739368063748,-1071.99,0.00013698,2]
[352848886,1739368063776,-1744.06,0.00013698,2]
[352848887,1739368063805,-3667.47,0.00013698,2]
[352848888,1739368063830,-643.56,0.00013698,2]
[352848889,1739368063857,-641.99,0.00013698,2]
[352848890,1739368063884,-1025.73,0.00013698,2]
[352848891,1739368063926,-392.685642,0.00013699,2]
[352848892,1739368063953,-151.0,0.00013699,2]
[352848893,1739368063980,-151.0,0.00013699,2]
[352848894,1739368064007,-279.926342,0.00013699,2]
[352848895,1739368064033,-628.27833,0.00013699,2]
[352848896,1739368064059,-183.62653941,0.00013699,2]
[352848897,1739368064084,-500.0,0.00013699,2]
[352848898,1739368064110,-500.0,0.00013699,2]
[352848899,1739368064135,-500.0,0.00013699,2]
[352848900,1739368064165,-500.0,0.00013699,2]
[352848901,1739368064190,-500.0,0.00013699,2]
[352848902,1739368064215,-500.0,0.00013699,2]
[352848903,1739368064243,-500.0,0.00013699,2]
[352848904,1739368064271,-500.0,0.00013699,2]
[352848905,1739368064299,-500.0,0.00013699,2]
[352848906,1739368064325,-500.0,0.00013699,2]
[352848907,1739368064349,-500.0,0.00013699,2]
[352848908,1739368064374,-500.0,0.00013699,2]
[352848909,1739368064402,-500.0,0.00013699,2]
[352848910,1739368064427,-500.0,0.00013699,2]
[352848911,1739368064453,-500.0,0.00013699,2]
[352848912,1739368064479,-576.57987407,0.00013699,2]
[352848913,1739368064505,-500.0,0.00013699,2]
[352848914,1739368064531,-371.657,0.00013702,2]
[352848915,1739368064557,-923.49,0.00013835,2]
[352848916,1739368064583,-3048.38681236,0.00013835,2]
[352848917,1739368064707,-140.70318764,0.00013835,2]
[352848918,1739368064731,-1827.83,0.00013835,2]
[352848919,1739368064753,-804.88,0.00013835,2]
[352848920,1739368064776,-10644.47,0.00013835,2]
[352848921,1739368064800,-901.3,0.00013835,2]
[352848922,1739368064823,-1071.99,0.00013835,2]
[352848923,1739368064846,-1744.06,0.00013835,2]
[352848924,1739368064869,-3667.47,0.00013835,2]
[352848925,1739368064893,-643.56,0.00013835,2]
[352848926,1739368064920,-641.99,0.00013835,2]
[352848927,1739368064943,-1025.73,0.00013835,2]
[352848928,1739368064967,-923.49,0.00013972,2]
[352848929,1739368064991,-3189.09,0.00013972,2]
[352848930,1739368065017,-1827.83,0.00013972,2]
[352848931,1739368065040,-804.88,0.00013972,2]
[352848932,1739368065064,-10644.47,0.00013972,2]
[352848933,1739368065087,-901.3,0.00013972,2]
[352848934,1739368065110,-1071.99,0.00013972,2]
[352848935,1739368065133,-1744.06,0.00013972,2]
[352848936,1739368065163,-3667.47,0.00013972,2]
[352848937,1739368065185,-643.56,0.00013972,2]
[352848938,1739368065208,-641.99,0.00013972,2]
[352848939,1739368065232,-1025.73,0.00013972,2]
[352848940,1739368065257,-1000.0,0.00014,2]
[352848941,1739368065279,-189.0,0.00014,2]
[352848942,1739368065300,-433.45,0.00014,2]
[352848943,1739368065324,-500.0,0.00014,2]
[352848944,1739368065347,-151.0,0.00014,2]
[352848945,1739368065368,-966.35743518,0.00014066,2]
[352848946,1739368065390,-923.56316971,0.00014109,2]
[352848947,1739368065417,-3189.26,0.00014109,2]
[352848948,1739368065441,-1827.85,0.00014109,2]
[352848949,1739368065462,-804.95366566,0.00014109,2]
[352848950,1739368065484,-10644.61760904,0.00014109,2]
[352848951,1739368065507,-901.44,0.00014109,2]
[352848952,1739368065529,-1072.11397846,0.00014109,2]
[352848953,1739368065552,-1744.16280015,0.00014109,2]
[352848954,1739368065586,-3667.67697821,0.00014109,2]
[352848955,1739368065615,-643.64270909,0.00014109,2]
[352848956,1739368065639,-642.08,0.00014109,2]
[352848957,1739368065666,-1025.82876198,0.00014109,2]
[352848958,1739368065689,-151.0,0.000142,2]
[352848959,1739368065713,-500.0,0.00014247,2]
[352848960,1739368065736,-1000.0,0.00014247,2]
[352848961,1739368065758,-1000.0,0.00014247,2]
[352848962,1739368065780,-150.532,0.00014301,2]
[352848963,1739368065803,-396.0,0.00014301,2]
[352848964,1739368065824,-951.309,0.00014301,2]
[352848965,1739368065847,-2297.0,0.00014301,2]
[352848966,1739368065869,-48395.51691288,0.00014321,2]
[352848967,1739368066100,-5000.0,0.00010848,2]
[352848968,1739368066123,-7438.69753278,0.00010848,2]
[352848969,1739368066150,-500.0,0.00010958,2]
[352848970,1739368066173,-500.0,0.00010958,2]
[352848971,1739368066196,-163.63082306,0.0001297,2]
[352848972,1739368066220,-163.63082306,0.00014027,2]
[352848973,1739368066248,-56332.60638233,0.00014321,2]
[352848974,1739368066303,-1201.7945,0.00010959,2]
[352848975,1739368066327,-19830.073975,0.00014321,2]
[352848976,1739368066518,-11501.13924634,0.00014321,2]
[352848977,1739368066541,-551.07324928,0.00014375,2]
[352848978,1739368066565,-551.07324928,0.00014475,2]
[352848979,1739368066588,-150563.00197918,0.000145,2]
[352848980,1739368066611,-1967.50809051,0.000145,2]
[352848981,1739368066637,-141868.01885413,0.000145,2]
[352848982,1739368066724,-500.0,0.00010958,2]
[352848983,1739368066747,-501.17174296,0.00010958,2]
[352848984,1739368066770,-1201.7945,0.00010959,2]
[352848985,1739368066796,-381238.02286204,0.000145,2]
[352848988,1739368121557,173.78,8.214e-05,2]
[352849137,1739368237897,-400.0,0.00010685,2]
[352849138,1739368237908,-751.5269549,0.00010848,2]
[352849139,1739368237918,-280.62380415,0.00010858,2]
[352849140,1739368237927,-500.0,0.00010958,2]
[352849141,1739368237937,-500.0,0.00010958,2]
[352849142,1739368237947,-500.0,0.00010958,2]
[352849143,1739368237957,-500.0,0.00010958,2]
[352849144,1739368237967,-500.0,0.00010958,2]
[352849145,1739368237976,-500.0,0.00010958,2]
[352849146,1739368237986,-500.0,0.00010958,2]
[352849147,1739368237997,-779.52,0.00010958,2]
[352849148,1739368238006,-500.0,0.00010958,2]
[352849149,1739368238016,-500.0,0.00010958,2]
[352849150,1739368238026,-500.0,0.00010958,2]
[352849151,1739368238035,-500.0,0.00010958,2]
[352849152,1739368238044,-500.0,0.00010958,2]
[352849153,1739368238054,-500.0,0.00010958,2]
[352849154,1739368238064,-500.0,0.00010958,2]
[352849155,1739368238074,-500.0,0.00010958,2]
[352849156,1739368238084,-295.35080795,0.00010958,2]
[352849157,1739368238097,-204.64919205,0.00010958,2]
[352849158,1739368238106,-4835.41712172,0.00010958,2]
[352849159,1739368238118,-500.0,0.00010958,2]
[352849160,1739368238128,-819.8,0.00010958,2]
[352849161,1739368238138,-819.8,0.00010958,2]
[352849162,1739368238148,-819.8,0.00010958,2]
[352849163,1739368238157,-819.8,0.00010958,2]
[352849164,1739368238167,-819.8,0.00010958,2]
[352849165,1739368238176,-819.8,0.00010958,2]
[352849166,1739368238186,-819.8,0.00010958,2]
[352849167,1739368238196,-819.8,0.00010958,2]
[352849168,1739368238206,-819.8,0.00010958,2]
[352849169,1739368238216,-819.8,0.00010958,2]
[352849170,1739368238226,-819.8,0.00010958,2]
[352849171,1739368238237,-819.8,0.00010958,2]
[352849172,1739368238247,-819.8,0.00010958,2]
[352849173,1739368238258,-819.8,0.00010958,2]
[352849174,1739368238268,-819.8,0.00010958,2]
[352849175,1739368238278,-819.8,0.00010958,2]
[352849176,1739368238288,-819.8,0.00010958,2]
[352849177,1739368238303,-500.0,0.00010958,2]
[352849178,1739368238313,-1201.7945,0.00010959,2]
[352849179,1739368238324,-1201.7945,0.00010959,2]
[352849180,1739368238335,-1201.7945,0.00010959,2]
[352849181,1739368238347,-1201.7945,0.00010959,2]
[352849182,1739368238357,-819.8,0.00011093,2]
[352849183,1739368238370,-1201.7945,0.00011094,2]
[352849184,1739368238382,-1201.7945,0.00011094,2]
[352849185,1739368238392,-819.8,0.00011094,2]
[352849186,1739368238402,-819.8,0.00011094,2]
[352849187,1739368238412,-819.8,0.00011094,2]
[352849188,1739368238422,-819.8,0.00011094,2]
[352849189,1739368238432,-819.8,0.00011094,2]
[352849190,1739368238442,-819.94407413,0.00011094,2]
[352849191,1739368238451,-1201.7945,0.00011095,2]
[352849192,1739368238462,-1201.7945,0.00011095,2]
[352849193,1739368238473,-1201.7945,0.00011095,2]
[352849194,1739368238483,-1201.7945,0.00011095,2]
[352849195,1739368238493,-1201.7945,0.00011095,2]
[352849196,1739368238503,-1201.7945,0.00011095,2]
[352849197,1739368238513,-500.0,0.00011095,2]
[352849198,1739368238523,-511.93809564,0.00011095,2]
[352849199,1739368238532,-500.0,0.00011095,2]
[352849200,1739368238542,-779.52,0.00011095,2]
[352849201,1739368238552,-286.81008612,0.00011095,2]
[352849202,1739368238562,-500.0,0.00011095,2]
[352849203,1739368238698,-352.87137897,0.00011095,2]
[352849204,1739368238708,-500.0,0.00011231,2]
[352849205,1739368238718,-1201.7945,0.00011232,2]
[352849206,1739368238728,-1201.7945,0.00011232,2]
[352849207,1739368238738,-347.080395,0.00011232,2]
[352849208,1739368238747,-347.080395,0.00011232,2]
[352849209,1739368238757,-1201.7945,0.00011232,2]
[352849210,1739368238766,-1201.7945,0.00011232,2]
[352849211,1739368238775,-500.0,0.00011232,2]
[352849212,1739368238784,-500.0,0.00011232,2]
[352849213,1739368238794,-779.52,0.00011232,2]
[352849214,1739368238804,-500.0,0.00011232,2]
[352849215,1739368238814,-1201.7945,0.00011369,2]
[352849216,1739368238823,-347.080395,0.00011369,2]
[352849217,1739368238833,-347.080395,0.00011369,2]
[352849218,1739368238843,-1201.79449,0.00011369,2]
[352849219,1739368238852,-500.0,0.00011369,2]
[352849220,1739368238862,-500.0,0.00011369,2]
[352849221,1739368238877,-779.52,0.00011369,2]
[352849222,1739368238887,-500.0,0.00011369,2]
[352849223,1739368238897,-347.080395,0.00011506,2]
[352849224,1739368238907,-347.080395,0.00011506,2]
[352849225,1739368238917,-500.0,0.00011506,2]
[352849226,1739368238927,-500.0,0.00011506,2]
[352849227,1739368238936,-779.52,0.00011506,2]
[352849228,1739368238946,-500.0,0.00011506,2]
[352849229,1739368238955,-347.080395,0.00011643,2]
[352849230,1739368238965,-347.080395,0.00011643,2]
[352849231,1739368238975,-500.0,0.00011643,2]
[352849232,1739368238984,-500.0,0.00011643,2]
[352849233,1739368238994,-779.52,0.00011643,2]
[352849234,1739368239004,-500.0,0.00011643,2]
[352849235,1739368239013,-347.080395,0.0001178,2]
[352849236,1739368239023,-347.080395,0.0001178,2]
[352849237,1739368239032,-500.0,0.0001178,2]
[352849238,1739368239042,-500.0,0.0001178,2]
[352849239,1739368239052,-779.52,0.0001178,2]
[352849240,1739368239062,-500.0,0.00011917,2]
[352849241,1739368239071,-500.0,0.00011917,2]
[352849242,1739368239081,-779.52,0.00011917,2]
[352849243,1739368239090,-700.0,0.00011984,2]
[352849244,1739368239100,-500.0,0.00012054,2]
[352849245,1739368239110,-500.0,0.00012054,2]
[352849246,1739368239120,-779.52,0.00012054,2]
[352849247,1739368239130,-347.080395,0.00012191,2]
[352849248,1739368239140,-347.080395,0.00012191,2]
[352849249,1739368239149,-500.0,0.00012191,2]
[352849250,1739368239159,-580.04,0.00012191,2]
[352849251,1739368239169,-779.52,0.00012191,2]
[352849253,1739368239178,-500.0,0.00012328,2]
[352849255,1739368239188,-779.52,0.00012328,2]
[352849257,1739368239198,-347.080395,0.00012465,2]
[352849259,1739368239208,-347.080395,0.00012465,2]
[352849261,1739368239217,-500.0,0.00012465,2]
[352849263,1739368239227,-779.52,0.00012465,2]
[352849264,1739368239236,-500.0,0.00012602,2]
[352849265,1739368239245,-779.52,0.00012602,2]
[352849266,1739368239255,-347.080395,0.00012739,2]
[352849267,1739368239265,-347.080395,0.00012739,2]
[352849268,1739368239275,-500.0,0.00012739,2]
[352849269,1739368239284,-779.52,0.00012739,2]
[352849270,1739368239295,-500.0,0.00012876,2]
[352849271,1739368239307,-779.52,0.00012876,2]
[352849272,1739368239318,-347.080395,0.00013,2]
[352849273,1739368239328,-347.080395,0.00013,2]
[352849274,1739368239337,-500.0,0.00013013,2]
[352849275,1739368239347,-779.52,0.00013013,2]
[352849277,1739368239359,-500.0,0.0001315,2]
[352849278,1739368239371,-779.52,0.0001315,2]
[352849279,1739368239384,-347.080395,0.00013287,2]
[352849280,1739368239396,-347.08039,0.00013287,2]
[352849281,1739368239405,-500.0,0.00013287,2]
[352849282,1739368239415,-779.52,0.00013287,2]
[352849283,1739368239425,-700.0,0.00013354,2]
[352849284,1739368239434,-500.0,0.00013424,2]
[352849285,1739368239447,-779.52,0.00013424,2]
[352849286,1739368239456,-500.0,0.00013561,2]
[352849287,1739368239465,-779.52,0.00013561,2]
[352849288,1739368239474,-500.0,0.00013698,2]
[352849289,1739368239483,-779.52,0.00013698,2]
[352849290,1739368239493,-589.028464,0.00013699,2]
[352849291,1739368239503,-500.0,0.00013699,2]
[352849292,1739368239514,-500.0,0.00013835,2]
[352849293,1739368239525,-779.52,0.00013835,2]
[352849294,1739368239535,-349.0,0.00013972,2]
[352849296,1739368239546,-779.52,0.00013972,2]
[352849298,1739368239556,-779.52,0.00014109,2]
[352849299,1739368239566,-785.73509478,0.00014247,2]
[352849300,1739368239576,-261.9342238,0.00014355,2]
[352849301,1739368239585,-272.52131296,0.00014391,2]
[352849302,1739368239594,-500.0,0.00014399,2]
[352849303,1739368239603,-500.0,0.00014399,2]
[352849304,1739368239613,-317.43538041,0.00014399,2]
[352849305,1739368239626,-230.73109712,0.00014399,2]